[Event "January 2 Early 2024"]
[Site "https://www.chess.com"]
[Date "2024.01.02"]
[Round "5"]
[White "Onslow, Alfie"]
[Black "Khamdamova, Afruza"]
[Result "1-0"]
[Board "152"]
[TimeControl "180+1"]
[WhiteFideId "436976"]
[BlackFideId "14210444"]
[WhiteElo "2280"]
[BlackElo "2546"]
[WhiteTeam "ENG"]
[BlackTeam "UZB"]
[WhiteClock "0:00:48"]
[BlackClock "0:00:00"]

1. e4 {[%clk 0:03:00]}  e5 {[%clk 0:02:59]} 2. Bc4 {[%clk 0:03:00]}  Nf6 {[%clk 0:02:58]} 3. d3 {[%clk 0:03:00]}  Nc6 {[%clk 0:02:57]} 4. Nc3 {[%clk 0:02:59]}  Bc5 {[%clk 0:02:57]} 5. f4 {[%clk 0:02:57]}  d6 {[%clk 0:02:52]} 6. f5 {[%clk 0:02:58]}  Na5 {[%clk 0:02:47]} 7. Nf3 {[%clk 0:02:54]}  Nxc4 {[%clk 0:02:42]} 8. dxc4 {[%clk 0:02:55]}  h6 {[%clk 0:02:40]} 9. Qe2 {[%clk 0:02:54]}  Bd7 {[%clk 0:02:27]} 10. a3 {[%clk 0:02:49]}  Qe7 {[%clk 0:02:20]} 11. Be3 {[%clk 0:02:39]}  Bxe3 {[%clk 0:01:56]} 12. Qxe3 {[%clk 0:02:40]}  a6 {[%clk 0:01:42]} 13. O-O-O {[%clk 0:02:28]}  b5 {[%clk 0:01:14]} 14. Nd5 {[%clk 0:02:28]}  Nxd5 {[%clk 0:01:13]} 15. cxd5 {[%clk 0:02:29]}  a5 {[%clk 0:01:00]} 16. g4 {[%clk 0:02:24]}  f6 {[%clk 0:00:57]} 17. Nh4 {[%clk 0:02:16]}  Qd8 {[%clk 0:00:46]} 18. Ng6 {[%clk 0:02:14]}  Rg8 {[%clk 0:00:43]} 19. h4 {[%clk 0:02:14]}  b4 {[%clk 0:00:37]} 20. Rdg1 {[%clk 0:02:08]}  Qb8 {[%clk 0:00:31]} 21. g5 {[%clk 0:02:05]}  hxg5 {[%clk 0:00:18]} 22. hxg5 {[%clk 0:02:06]}  Qa7 {[%clk 0:00:06]} 23. Qxa7 {[%clk 0:01:25]}  Rxa7 {[%clk 0:00:06]} 24. gxf6 {[%clk 0:01:26]}  gxf6 {[%clk 0:00:05]} 25. Rh7 {[%clk 0:01:27]}  Kd8 {[%clk 0:00:04]} 26. Rgh1 {[%clk 0:01:24]}  Be8 {[%clk 0:00:03]} 27. Rh8 {[%clk 0:01:19]}  Rxh8 {[%clk 0:00:03]} 28. Rxh8 {[%clk 0:01:20]}  c6 {[%clk 0:00:01]} 29. dxc6 {[%clk 0:01:16]}  Rc7 {[%clk 0:00:01]} 30. Nf8 {[%clk 0:01:01]}  Rxc6 {[%clk 0:00:01]} 31. Ne6+ {[%clk 0:01:02]}  Ke7 {[%clk 0:00:01]} 32. Rh7+ {[%clk 0:01:02]}  Bf7 {[%clk 0:00:02]} 33. Rxf7+ {[%clk 0:00:58]}  Ke8 {[%clk 0:00:01]} 34. Rxf6 {[%clk 0:00:51]}  bxa3 {[%clk 0:00:01]} 35. bxa3 {[%clk 0:00:51]}  Rc4 {[%clk 0:00:01]} 36. Ng5 {[%clk 0:00:49]}  Rd4 {[%clk 0:00:00]} 37. Re6+ {[%clk 0:00:48]} 1-0

[Event "January 2 Early 2024"]
[Site "https://www.chess.com"]
[Date "2024.01.02"]
[Round "5"]
[White "Minina, Veronika"]
[Black "Petre, Nad-Titus"]
[Result "1-0"]
[Board "154"]
[TimeControl "180+1"]
[WhiteFideId "4174780"]
[BlackFideId "1204165"]
[WhiteElo "2276"]
[BlackElo "2520"]
[WhiteTeam "RUS"]
[BlackTeam "ROU"]
[WhiteClock "0:00:13"]
[BlackClock "0:00:11"]

1. Nf3 {[%clk 0:03:00]}  Nf6 {[%clk 0:02:57]} 2. g3 {[%clk 0:03:00]}  b6 {[%clk 0:02:57]} 3. Bg2 {[%clk 0:03:00]}  Bb7 {[%clk 0:02:58]} 4. O-O {[%clk 0:03:00]}  c5 {[%clk 0:02:51]} 5. c4 {[%clk 0:03:00]}  g6 {[%clk 0:02:44]} 6. Nc3 {[%clk 0:02:53]}  Bg7 {[%clk 0:02:44]} 7. d4 {[%clk 0:02:53]}  cxd4 {[%clk 0:02:44]} 8. Nxd4 {[%clk 0:02:52]}  Bxg2 {[%clk 0:02:41]} 9. Kxg2 {[%clk 0:02:52]}  Qc7 {[%clk 0:02:42]} 10. b3 {[%clk 0:02:50]}  O-O {[%clk 0:02:26]} 11. Bb2 {[%clk 0:02:49]}  Nc6 {[%clk 0:02:21]} 12. e3 {[%clk 0:02:49]}  Rfd8 {[%clk 0:02:21]} 13. Rc1 {[%clk 0:02:37]}  Qb7 {[%clk 0:02:12]} 14. Kg1 {[%clk 0:02:35]}  Rac8 {[%clk 0:02:03]} 15. Qf3 {[%clk 0:02:33]}  Qa8 {[%clk 0:01:54]} 16. Rfd1 {[%clk 0:01:57]}  Nxd4 {[%clk 0:01:34]} 17. Qxa8 {[%clk 0:01:56]}  Rxa8 {[%clk 0:01:34]} 18. exd4 {[%clk 0:01:54]}  Rac8 {[%clk 0:01:10]} 19. d5 {[%clk 0:01:52]}  Ne4 {[%clk 0:01:02]} 20. Rc2 {[%clk 0:01:51]}  Bxc3 {[%clk 0:00:46]} 21. Bxc3 {[%clk 0:01:52]}  b5 {[%clk 0:00:45]} 22. Ba5 {[%clk 0:01:41]}  Re8 {[%clk 0:00:41]} 23. f3 {[%clk 0:01:36]}  Nd6 {[%clk 0:00:36]} 24. Rdc1 {[%clk 0:01:09]}  a6 {[%clk 0:00:33]} 25. c5 {[%clk 0:01:07]}  Nf5 {[%clk 0:00:33]} 26. c6 {[%clk 0:00:53]}  d6 {[%clk 0:00:32]} 27. c7 {[%clk 0:00:47]}  Nd4 {[%clk 0:00:22]} 28. Rc3 {[%clk 0:00:46]}  Ne2+ {[%clk 0:00:20]} 29. Kf2 {[%clk 0:00:46]}  Nxc1 {[%clk 0:00:20]} 30. Rxc1 {[%clk 0:00:45]}  e6 {[%clk 0:00:21]} 31. Rc6 {[%clk 0:00:39]}  exd5 {[%clk 0:00:21]} 32. Rxd6 {[%clk 0:00:38]}  Kg7 {[%clk 0:00:20]} 33. Rxd5 {[%clk 0:00:35]}  Kf6 {[%clk 0:00:17]} 34. Rd6+ {[%clk 0:00:30]}  Ke5 {[%clk 0:00:18]} 35. Rxa6 {[%clk 0:00:30]}  Kd4 {[%clk 0:00:16]} 36. Rd6+ {[%clk 0:00:29]}  Kc5 {[%clk 0:00:17]} 37. Rf6 {[%clk 0:00:26]}  Re7 {[%clk 0:00:16]} 38. a3 {[%clk 0:00:24]}  Kd4 {[%clk 0:00:15]} 39. Rd6+ {[%clk 0:00:22]}  Ke5 {[%clk 0:00:15]} 40. Rd3 {[%clk 0:00:20]}  Rexc7 {[%clk 0:00:14]} 41. Bxc7+ {[%clk 0:00:19]}  Rxc7 {[%clk 0:00:15]} 42. f4+ {[%clk 0:00:19]}  Ke6 {[%clk 0:00:15]} 43. Kf3 {[%clk 0:00:18]}  Rc2 {[%clk 0:00:15]} 44. Re3+ {[%clk 0:00:16]}  Kd5 {[%clk 0:00:15]} 45. Rd3+ {[%clk 0:00:15]}  Kc6 {[%clk 0:00:14]} 46. h3 {[%clk 0:00:15]}  Ra2 {[%clk 0:00:14]} 47. b4 {[%clk 0:00:15]}  h5 {[%clk 0:00:14]} 48. Rc3+ {[%clk 0:00:15]}  Kb6 {[%clk 0:00:14]} 49. g4 {[%clk 0:00:14]}  h4 {[%clk 0:00:13]} 50. g5 {[%clk 0:00:14]}  Rh2 {[%clk 0:00:12]} 51. Kg4 {[%clk 0:00:14]}  Rg2+ {[%clk 0:00:13]} 52. Kxh4 {[%clk 0:00:14]}  Rg1 {[%clk 0:00:13]} 53. Rd3 {[%clk 0:00:13]}  Kc6 {[%clk 0:00:13]} 54. Rc3+ {[%clk 0:00:14]}  Kb6 {[%clk 0:00:13]} 55. Re3 {[%clk 0:00:14]}  Rf1 {[%clk 0:00:12]} 56. Kg4 {[%clk 0:00:13]}  Rg1+ {[%clk 0:00:13]} 57. Kf3 {[%clk 0:00:13]}  Ra1 {[%clk 0:00:12]} 58. Ke4 {[%clk 0:00:13]}  Kc6 {[%clk 0:00:12]} 59. Ke5 {[%clk 0:00:13]}  Kd7 {[%clk 0:00:13]} 60. Kf6 {[%clk 0:00:13]}  Rf1 {[%clk 0:00:14]} 61. Rd3+ {[%clk 0:00:13]}  Ke8 {[%clk 0:00:14]} 62. Re3+ {[%clk 0:00:12]}  Kf8 {[%clk 0:00:14]} 63. Re4 {[%clk 0:00:12]}  Rc1 {[%clk 0:00:13]} 64. Rd4 {[%clk 0:00:12]}  Rc6+ {[%clk 0:00:14]} 65. Ke5 {[%clk 0:00:13]}  Ra6 {[%clk 0:00:14]} 66. Rd3 {[%clk 0:00:12]}  Re6+ {[%clk 0:00:14]} 67. Kd5 {[%clk 0:00:12]}  Ke7 {[%clk 0:00:13]} 68. Kc5 {[%clk 0:00:12]}  Re4 {[%clk 0:00:14]} 69. Kxb5 {[%clk 0:00:13]}  Rxf4 {[%clk 0:00:15]} 70. Ka6 {[%clk 0:00:12]}  Rf5 {[%clk 0:00:14]} 71. b5 {[%clk 0:00:12]}  Rxg5 {[%clk 0:00:13]} 72. b6 {[%clk 0:00:13]}  f5 {[%clk 0:00:11]} 73. b7 {[%clk 0:00:13]} 1-0

[Event "January 2 Early 2024"]
[Site "https://www.chess.com"]
[Date "2024.01.02"]
[Round "5"]
[White "Novikov, Evgenij"]
[Black "Lopez Del Alamo, Antonio"]
[Result "1-0"]
[Board "155"]
[TimeControl "180+1"]
[WhiteFideId "4125380"]
[BlackFideId "2227339"]
[WhiteElo "2509"]
[BlackElo "2266"]
[WhiteTeam "RUS"]
[BlackTeam "ESP"]
[WhiteClock "0:01:04"]
[BlackClock "0:01:47"]

1. e4 {[%clk 0:03:00]}  c5 {[%clk 0:02:56]} 2. Nf3 {[%clk 0:02:59]}  e6 {[%clk 0:02:57]} 3. d4 {[%clk 0:02:59]}  cxd4 {[%clk 0:02:56]} 4. Nxd4 {[%clk 0:03:00]}  Nf6 {[%clk 0:02:56]} 5. Bd3 {[%clk 0:02:58]}  Nc6 {[%clk 0:02:57]} 6. Nb3 {[%clk 0:02:55]}  d5 {[%clk 0:02:56]} 7. exd5 {[%clk 0:02:54]}  exd5 {[%clk 0:02:57]} 8. O-O {[%clk 0:02:54]}  Be7 {[%clk 0:02:57]} 9. N1d2 {[%clk 0:02:52]}  O-O {[%clk 0:02:57]} 10. h3 {[%clk 0:02:52]}  Ne5 {[%clk 0:02:54]} 11. Nf3 {[%clk 0:02:49]}  Nxd3 {[%clk 0:02:54]} 12. Qxd3 {[%clk 0:02:50]}  Qc7 {[%clk 0:02:44]} 13. Bg5 {[%clk 0:02:47]}  Be6 {[%clk 0:02:43]} 14. c3 {[%clk 0:02:45]}  Rfd8 {[%clk 0:02:40]} 15. Rfe1 {[%clk 0:02:44]}  h6 {[%clk 0:02:24]} 16. Bh4 {[%clk 0:02:40]}  g5 {[%clk 0:02:18]} 17. Bg3 {[%clk 0:02:39]}  Qc4 {[%clk 0:02:19]} 18. Rad1 {[%clk 0:02:33]}  a5 {[%clk 0:02:13]} 19. Ne5 {[%clk 0:02:27]}  Qxd3 {[%clk 0:02:11]} 20. Rxd3 {[%clk 0:02:27]}  a4 {[%clk 0:02:10]} 21. Nd4 {[%clk 0:02:27]}  a3 {[%clk 0:02:10]} 22. b3 {[%clk 0:02:20]}  Ra6 {[%clk 0:02:10]} 23. f3 {[%clk 0:01:48]}  Nd7 {[%clk 0:02:07]} 24. Kf1 {[%clk 0:01:14]}  Bf6 {[%clk 0:01:54]} 25. Nxd7 {[%clk 0:01:06]}  Be5 {[%clk 0:01:47]} 26. Nxe5 {[%clk 0:01:04]} 1-0

[Event "January 2 Early 2024"]
[Site "https://www.chess.com"]
[Date "2024.01.02"]
[Round "5"]
[White "Tikhonov, Viacheslav"]
[Black "Vanek, Tomas"]
[Result "0-1"]
[Board "156"]
[TimeControl "180+1"]
[WhiteFideId "44196407"]
[BlackFideId "313459"]
[WhiteElo "2489"]
[BlackElo "2265"]
[WhiteTeam "RUS"]
[BlackTeam "CZE"]
[WhiteClock "0:00:42"]
[BlackClock "0:01:34"]

1. e4 {[%clk 0:03:00]}  c5 {[%clk 0:02:59]} 2. Nf3 {[%clk 0:03:00]}  Nc6 {[%clk 0:02:59]} 3. d4 {[%clk 0:03:00]}  cxd4 {[%clk 0:02:59]} 4. Nxd4 {[%clk 0:03:01]}  Nf6 {[%clk 0:02:59]} 5. Nc3 {[%clk 0:03:02]}  e5 {[%clk 0:02:58]} 6. Ndb5 {[%clk 0:03:02]}  d6 {[%clk 0:02:58]} 7. Be3 {[%clk 0:03:02]}  a6 {[%clk 0:02:52]} 8. Na3 {[%clk 0:03:02]}  b5 {[%clk 0:02:51]} 9. Nd5 {[%clk 0:03:03]}  Nxd5 {[%clk 0:02:38]} 10. exd5 {[%clk 0:03:03]}  Ne7 {[%clk 0:02:32]} 11. c4 {[%clk 0:03:04]}  b4 {[%clk 0:02:29]} 12. Qa4+ {[%clk 0:03:03]}  Bd7 {[%clk 0:02:22]} 13. Qxb4 {[%clk 0:03:03]}  Nf5 {[%clk 0:02:19]} 14. Bb6 {[%clk 0:02:36]}  Qc8 {[%clk 0:02:16]} 15. Qa5 {[%clk 0:01:59]}  Be7 {[%clk 0:01:55]} 16. Bd3 {[%clk 0:01:55]}  Nh4 {[%clk 0:01:54]} 17. Kf1 {[%clk 0:01:15]}  Bh3 {[%clk 0:01:52]} 18. gxh3 {[%clk 0:01:03]}  Qxh3+ {[%clk 0:01:50]} 19. Ke2 {[%clk 0:01:04]}  Qf3+ {[%clk 0:01:43]} 20. Kd2 {[%clk 0:01:03]}  Bg5+ {[%clk 0:01:42]} 21. Kc2 {[%clk 0:01:02]}  e4 {[%clk 0:01:35]} 22. Rhe1 {[%clk 0:00:42]}  Qxd3# {[%clk 0:01:34]} 0-1

[Event "January 2 Early 2024"]
[Site "https://www.chess.com"]
[Date "2024.01.02"]
[Round "5"]
[White "Cueto, Jonny"]
[Black "Brankovic, Dejan"]
[Result "0-1"]
[Board "157"]
[TimeControl "180+1"]
[WhiteFideId "3300145"]
[BlackFideId "921602"]
[WhiteElo "2253"]
[BlackElo "2458"]
[WhiteTeam "BOL"]
[BlackTeam "SRB"]
[WhiteClock "0:00:15"]
[BlackClock "0:00:39"]

1. d4 {[%clk 0:03:00]}  Nf6 {[%clk 0:02:59]} 2. Bf4 {[%clk 0:02:57]}  d5 {[%clk 0:02:57]} 3. e3 {[%clk 0:02:56]}  c5 {[%clk 0:02:57]} 4. Nf3 {[%clk 0:02:56]}  Nc6 {[%clk 0:02:57]} 5. Nbd2 {[%clk 0:02:56]}  Qb6 {[%clk 0:02:52]} 6. dxc5 {[%clk 0:02:56]}  Qxb2 {[%clk 0:02:50]} 7. Rb1 {[%clk 0:02:56]}  Qa3 {[%clk 0:02:49]} 8. Bb5 {[%clk 0:02:56]}  e6 {[%clk 0:02:45]} 9. O-O {[%clk 0:02:55]}  Bxc5 {[%clk 0:02:31]} 10. c4 {[%clk 0:02:53]}  O-O {[%clk 0:02:30]} 11. cxd5 {[%clk 0:02:36]}  Nxd5 {[%clk 0:02:28]} 12. Nc4 {[%clk 0:02:26]}  Qc3 {[%clk 0:02:14]} 13. Rb3 {[%clk 0:02:15]}  Qf6 {[%clk 0:02:10]} 14. Bg5 {[%clk 0:01:47]}  Qg6 {[%clk 0:01:52]} 15. Bxc6 {[%clk 0:01:31]}  bxc6 {[%clk 0:01:52]} 16. Nce5 {[%clk 0:01:31]}  Qh5 {[%clk 0:01:42]} 17. Nxc6 {[%clk 0:01:16]}  Ba6 {[%clk 0:01:27]} 18. Re1 {[%clk 0:00:54]}  Rfc8 {[%clk 0:01:26]} 19. Nce5 {[%clk 0:00:55]}  Bb4 {[%clk 0:01:24]} 20. Rxb4 {[%clk 0:00:35]}  Nxb4 {[%clk 0:01:24]} 21. g4 {[%clk 0:00:36]}  Qh3 {[%clk 0:01:23]} 22. Qd7 {[%clk 0:00:35]}  Rf8 {[%clk 0:01:17]} 23. Be7 {[%clk 0:00:33]}  Nd5 {[%clk 0:00:59]} 24. Bxf8 {[%clk 0:00:30]}  Rxf8 {[%clk 0:00:58]} 25. Nxf7 {[%clk 0:00:20]}  Qxg4+ {[%clk 0:00:55]} 26. Kh1 {[%clk 0:00:17]}  Qxf3+ {[%clk 0:00:54]} 27. Kg1 {[%clk 0:00:17]}  Qxf7 {[%clk 0:00:53]} 28. Qd6 {[%clk 0:00:17]}  Qxf2+ {[%clk 0:00:52]} 29. Kh1 {[%clk 0:00:17]}  Qxe1+ {[%clk 0:00:52]} 30. Kg2 {[%clk 0:00:18]}  Qf1+ {[%clk 0:00:50]} 31. Kg3 {[%clk 0:00:18]}  Qf3+ {[%clk 0:00:49]} 32. Kh4 {[%clk 0:00:19]}  Qf2+ {[%clk 0:00:43]} 33. Kh3 {[%clk 0:00:17]}  Rf3+ {[%clk 0:00:41]} 34. Kg4 {[%clk 0:00:18]}  Qg2+ {[%clk 0:00:41]} 35. Kh4 {[%clk 0:00:15]}  Rh3# {[%clk 0:00:39]} 0-1

[Event "January 2 Early 2024"]
[Site "https://www.chess.com"]
[Date "2024.01.02"]
[Round "5"]
[White "Slavin, Alexey"]
[Black "Valle Luis, Leo"]
[Result "1-0"]
[Board "158"]
[TimeControl "180+1"]
[WhiteFideId "24104388"]
[BlackFideId "54577187"]
[WhiteElo "2242"]
[BlackElo "2434"]
[WhiteTeam "RUS"]
[BlackTeam "ESP"]
[WhiteClock "0:00:09"]
[BlackClock "0:00:03"]

1. e4 {[%clk 0:02:59]}  c6 {[%clk 0:02:59]} 2. d4 {[%clk 0:02:59]}  d5 {[%clk 0:03:00]} 3. e5 {[%clk 0:02:59]}  Bf5 {[%clk 0:02:58]} 4. Nf3 {[%clk 0:02:59]}  e6 {[%clk 0:02:58]} 5. Be2 {[%clk 0:03:00]}  c5 {[%clk 0:02:58]} 6. Be3 {[%clk 0:02:59]}  Nd7 {[%clk 0:02:46]} 7. O-O {[%clk 0:02:57]}  Ne7 {[%clk 0:02:46]} 8. c3 {[%clk 0:02:57]}  Nc6 {[%clk 0:02:47]} 9. a3 {[%clk 0:02:56]}  a5 {[%clk 0:02:36]} 10. a4 {[%clk 0:02:37]}  c4 {[%clk 0:02:25]} 11. Na3 {[%clk 0:02:35]}  Qb6 {[%clk 0:02:18]} 12. Nb5 {[%clk 0:02:35]}  Na7 {[%clk 0:02:18]} 13. Nd6+ {[%clk 0:02:15]}  Bxd6 {[%clk 0:02:08]} 14. exd6 {[%clk 0:02:16]}  Nc8 {[%clk 0:02:06]} 15. Ne5 {[%clk 0:02:11]}  Qxd6 {[%clk 0:02:01]} 16. Bf4 {[%clk 0:02:08]}  Qe7 {[%clk 0:01:54]} 17. b3 {[%clk 0:02:00]}  Nxe5 {[%clk 0:01:38]} 18. Bxe5 {[%clk 0:01:57]}  O-O {[%clk 0:01:27]} 19. bxc4 {[%clk 0:01:56]}  dxc4 {[%clk 0:01:28]} 20. Bxc4 {[%clk 0:01:55]}  Nb6 {[%clk 0:01:28]} 21. Bb3 {[%clk 0:01:34]}  Rac8 {[%clk 0:01:26]} 22. Rc1 {[%clk 0:01:32]}  Rfd8 {[%clk 0:01:24]} 23. Re1 {[%clk 0:01:31]}  Qa3 {[%clk 0:01:19]} 24. Re3 {[%clk 0:01:11]}  f6 {[%clk 0:01:08]} 25. Bg3 {[%clk 0:01:04]}  Rxd4 {[%clk 0:01:01]} 26. Qe1 {[%clk 0:00:50]}  Nd5 {[%clk 0:00:23]} 27. Rf3 {[%clk 0:00:26]}  Re4 {[%clk 0:00:18]} 28. Qd1 {[%clk 0:00:16]}  Ne7 {[%clk 0:00:15]} 29. Bd6 {[%clk 0:00:10]}  Qxc1 {[%clk 0:00:07]} 30. Qxc1 {[%clk 0:00:11]}  Nd5 {[%clk 0:00:07]} 31. Bxd5 {[%clk 0:00:09]}  exd5 {[%clk 0:00:05]} 32. Rxf5 {[%clk 0:00:09]}  d4 {[%clk 0:00:05]} 33. Rf3 {[%clk 0:00:08]}  Kf7 {[%clk 0:00:02]} 34. g3 {[%clk 0:00:09]}  Re6 {[%clk 0:00:02]} 35. Bf4 {[%clk 0:00:09]}  Rec6 {[%clk 0:00:02]} 36. Bd2 {[%clk 0:00:09]}  dxc3 {[%clk 0:00:03]} 37. Rxc3 {[%clk 0:00:09]}  Rxc3 {[%clk 0:00:03]} 38. Bxc3 {[%clk 0:00:09]}  Re8 {[%clk 0:00:03]} 39. Qd2 {[%clk 0:00:09]} 1-0

[Event "January 2 Early 2024"]
[Site "https://www.chess.com"]
[Date "2024.01.02"]
[Round "5"]
[White "Kanter, Eduard"]
[Black "Merikard"]
[Result "0-1"]
[Board "160"]
[TimeControl "180+1"]
[WhiteFideId "4103963"]
[WhiteElo "2396"]
[BlackElo "2233"]
[WhiteTeam "RUS"]
[WhiteClock "0:00:03"]
[BlackClock "0:01:13"]

1. e4 {[%clk 0:02:56]}  g6 {[%clk 0:02:59]} 2. d4 {[%clk 0:02:56]}  Bg7 {[%clk 0:02:59]} 3. Nc3 {[%clk 0:02:55]}  d6 {[%clk 0:02:59]} 4. h4 {[%clk 0:02:55]}  h6 {[%clk 0:02:57]} 5. h5 {[%clk 0:02:55]}  g5 {[%clk 0:02:57]} 6. f4 {[%clk 0:02:55]}  gxf4 {[%clk 0:02:57]} 7. Bxf4 {[%clk 0:02:55]}  Nd7 {[%clk 0:02:58]} 8. Nf3 {[%clk 0:02:55]}  a6 {[%clk 0:02:58]} 9. a4 {[%clk 0:02:51]}  b6 {[%clk 0:02:58]} 10. Bc4 {[%clk 0:02:50]}  e6 {[%clk 0:02:58]} 11. Qd3 {[%clk 0:02:49]}  Ne7 {[%clk 0:02:56]} 12. O-O-O {[%clk 0:02:47]}  Bb7 {[%clk 0:02:56]} 13. Kb1 {[%clk 0:02:33]}  Nf6 {[%clk 0:02:29]} 14. e5 {[%clk 0:02:18]}  Nfd5 {[%clk 0:02:20]} 15. Nxd5 {[%clk 0:02:15]}  Nxd5 {[%clk 0:02:20]} 16. Bg3 {[%clk 0:02:05]}  Qd7 {[%clk 0:02:09]} 17. b3 {[%clk 0:01:49]}  b5 {[%clk 0:02:07]} 18. axb5 {[%clk 0:01:41]}  axb5 {[%clk 0:02:05]} 19. Bxb5 {[%clk 0:01:40]}  Bc6 {[%clk 0:02:02]} 20. Bxc6 {[%clk 0:01:10]}  Qxc6 {[%clk 0:02:01]} 21. Be1 {[%clk 0:01:11]}  Qb6 {[%clk 0:01:46]} 22. Kc1 {[%clk 0:00:20]}  Ra2 {[%clk 0:01:31]} 23. Rd2 {[%clk 0:00:08]}  Qa7 {[%clk 0:01:27]} 24. Qb5+ {[%clk 0:00:08]}  Kf8 {[%clk 0:01:22]} 25. Rd3 {[%clk 0:00:05]}  dxe5 {[%clk 0:01:19]} 26. Nxe5 {[%clk 0:00:04]}  Bxe5 {[%clk 0:01:17]} 27. dxe5 {[%clk 0:00:04]}  Rg8 {[%clk 0:01:16]} 28. Bb4+ {[%clk 0:00:04]}  Kg7 {[%clk 0:01:14]} 29. Rg3+ {[%clk 0:00:02]}  Kh7 {[%clk 0:01:14]} 30. Rxg8 {[%clk 0:00:02]}  Kxg8 {[%clk 0:01:15]} 31. Qe8+ {[%clk 0:00:02]}  Kg7 {[%clk 0:01:15]} 32. Qf8+ {[%clk 0:00:02]}  Kh7 {[%clk 0:01:13]} 33. Qxf7+ {[%clk 0:00:02]}  Kh8 {[%clk 0:01:13]} 34. Qf8+ {[%clk 0:00:03]}  Kh7 {[%clk 0:01:14]} 35. Qf7+ {[%clk 0:00:03]}  Kh8 {[%clk 0:01:14]} 36. Qxe6 {[%clk 0:00:03]}  Ra1+ {[%clk 0:01:14]} 37. Kd2 {[%clk 0:00:03]}  Qe3# {[%clk 0:01:13]} 0-1

[Event "January 2 Early 2024"]
[Site "https://www.chess.com"]
[Date "2024.01.02"]
[Round "5"]
[White "Samaganova, Aleksandra"]
[Black "Franchini, Gabriele"]
[Result "1-0"]
[Board "164"]
[TimeControl "180+1"]
[WhiteFideId "13800221"]
[BlackFideId "806790"]
[WhiteElo "2387"]
[BlackElo "2208"]
[WhiteTeam "KGZ"]
[BlackTeam "ITA"]
[WhiteClock "0:00:06"]
[BlackClock "0:00:00"]

1. c4 {[%clk 0:03:00]}  e6 {[%clk 0:02:59]} 2. Nc3 {[%clk 0:02:58]}  d5 {[%clk 0:02:58]} 3. e3 {[%clk 0:02:56]}  Nf6 {[%clk 0:02:57]} 4. Nf3 {[%clk 0:02:54]}  Be7 {[%clk 0:02:57]} 5. d4 {[%clk 0:02:54]}  c6 {[%clk 0:02:55]} 6. Bd3 {[%clk 0:02:54]}  Nbd7 {[%clk 0:02:55]} 7. O-O {[%clk 0:02:54]}  dxc4 {[%clk 0:02:55]} 8. Bxc4 {[%clk 0:02:54]}  b5 {[%clk 0:02:56]} 9. Bd3 {[%clk 0:02:54]}  Bb7 {[%clk 0:02:56]} 10. a3 {[%clk 0:02:54]}  O-O {[%clk 0:02:56]} 11. b4 {[%clk 0:02:54]}  a5 {[%clk 0:02:54]} 12. Rb1 {[%clk 0:02:54]}  axb4 {[%clk 0:02:51]} 13. axb4 {[%clk 0:02:55]}  Nb6 {[%clk 0:02:37]} 14. e4 {[%clk 0:02:41]}  Na4 {[%clk 0:02:30]} 15. Bd2 {[%clk 0:02:32]}  Qb6 {[%clk 0:02:19]} 16. Qc2 {[%clk 0:02:24]}  h6 {[%clk 0:02:15]} 17. Be3 {[%clk 0:02:23]}  Ng4 {[%clk 0:01:49]} 18. Rfe1 {[%clk 0:02:17]}  Nxe3 {[%clk 0:01:47]} 19. Rxe3 {[%clk 0:02:14]}  Nxc3 {[%clk 0:01:39]} 20. Qxc3 {[%clk 0:02:14]}  Ra2 {[%clk 0:01:36]} 21. h3 {[%clk 0:02:02]}  Rfa8 {[%clk 0:01:36]} 22. Re2 {[%clk 0:01:56]}  R8a3 {[%clk 0:01:32]} 23. Rb3 {[%clk 0:01:56]}  Ra1+ {[%clk 0:01:20]} 24. Kh2 {[%clk 0:01:55]}  Ra4 {[%clk 0:01:13]} 25. Re1 {[%clk 0:01:47]}  R1a2 {[%clk 0:01:10]} 26. Re2 {[%clk 0:01:45]}  Ra1 {[%clk 0:01:08]} 27. g3 {[%clk 0:01:45]}  Qa7 {[%clk 0:01:08]} 28. Ne5 {[%clk 0:01:39]}  Qa8 {[%clk 0:01:02]} 29. Nd7 {[%clk 0:01:38]}  Qd8 {[%clk 0:00:57]} 30. Ne5 {[%clk 0:01:36]}  Bd6 {[%clk 0:00:53]} 31. Nxc6 {[%clk 0:01:30]}  Qc7 {[%clk 0:00:46]} 32. d5 {[%clk 0:01:24]}  Bxc6 {[%clk 0:00:30]} 33. dxc6 {[%clk 0:01:22]}  Be5 {[%clk 0:00:28]} 34. Qc5 {[%clk 0:01:19]}  Rd1 {[%clk 0:00:20]} 35. Bc2 {[%clk 0:00:52]}  Rc1 {[%clk 0:00:18]} 36. Rb1 {[%clk 0:00:50]}  Ra1 {[%clk 0:00:14]} 37. Rxa1 {[%clk 0:00:49]}  Bxa1 {[%clk 0:00:14]} 38. Qxb5 {[%clk 0:00:47]}  Bd4 {[%clk 0:00:09]} 39. Qc4 {[%clk 0:00:42]}  Bb6 {[%clk 0:00:09]} 40. b5 {[%clk 0:00:39]}  Rf1 {[%clk 0:00:08]} 41. Kg2 {[%clk 0:00:37]}  Rc1 {[%clk 0:00:07]} 42. Qd3 {[%clk 0:00:36]}  g6 {[%clk 0:00:07]} 43. Qd7 {[%clk 0:00:33]}  Kf8 {[%clk 0:00:06]} 44. Rd2 {[%clk 0:00:31]}  Qxd7 {[%clk 0:00:04]} 45. cxd7 {[%clk 0:00:29]}  Ke7 {[%clk 0:00:04]} 46. Kf3 {[%clk 0:00:18]}  Kd8 {[%clk 0:00:04]} 47. Ke2 {[%clk 0:00:17]}  Bc7 {[%clk 0:00:04]} 48. Bd1 {[%clk 0:00:12]}  Ra1 {[%clk 0:00:05]} 49. Rb2 {[%clk 0:00:05]}  Ra5 {[%clk 0:00:04]} 50. b6 {[%clk 0:00:05]}  Be5 {[%clk 0:00:03]} 51. b7 {[%clk 0:00:05]}  Bb8 {[%clk 0:00:02]} 52. Rd2 {[%clk 0:00:05]}  Rb5 {[%clk 0:00:01]} 53. Bc2 {[%clk 0:00:04]}  Rxb7 {[%clk 0:00:02]} 54. Ba4 {[%clk 0:00:04]}  Ra7 {[%clk 0:00:02]} 55. Bc6 {[%clk 0:00:04]}  Rc7 {[%clk 0:00:02]} 56. Bb5 {[%clk 0:00:04]}  Rb7 {[%clk 0:00:03]} 57. Bc6 {[%clk 0:00:05]}  Rc7 {[%clk 0:00:03]} 58. Ba4 {[%clk 0:00:04]}  Ra7 {[%clk 0:00:03]} 59. Bb3 {[%clk 0:00:04]}  Rxd7 {[%clk 0:00:03]} 60. Rxd7+ {[%clk 0:00:03]}  Kxd7 {[%clk 0:00:04]} 61. Kf3 {[%clk 0:00:04]}  Ke7 {[%clk 0:00:05]} 62. Ba4 {[%clk 0:00:04]}  Bc7 {[%clk 0:00:05]} 63. Bb5 {[%clk 0:00:04]}  Kf6 {[%clk 0:00:05]} 64. h4 {[%clk 0:00:04]}  Bd6 {[%clk 0:00:05]} 65. Ke3 {[%clk 0:00:04]}  Bc5+ {[%clk 0:00:06]} 66. Ke2 {[%clk 0:00:04]}  Bb6 {[%clk 0:00:07]} 67. f4 {[%clk 0:00:04]}  e5 {[%clk 0:00:06]} 68. Kf3 {[%clk 0:00:04]}  exf4 {[%clk 0:00:05]} 69. gxf4 {[%clk 0:00:04]}  Ke6 {[%clk 0:00:05]} 70. Bc4+ {[%clk 0:00:04]}  Kf6 {[%clk 0:00:05]} 71. Bd5 {[%clk 0:00:04]}  Kg7 {[%clk 0:00:05]} 72. Kg4 {[%clk 0:00:05]}  Bd8 {[%clk 0:00:05]} 73. h5 {[%clk 0:00:05]}  gxh5+ {[%clk 0:00:05]} 74. Kxh5 {[%clk 0:00:06]}  Bc7 {[%clk 0:00:05]} 75. Kg4 {[%clk 0:00:06]}  Bb8 {[%clk 0:00:04]} 76. Kf5 {[%clk 0:00:06]}  Bc7 {[%clk 0:00:04]} 77. e5 {[%clk 0:00:06]}  Bb8 {[%clk 0:00:04]} 78. Bf3 {[%clk 0:00:06]}  Ba7 {[%clk 0:00:03]} 79. Bh5 {[%clk 0:00:06]}  Be3 {[%clk 0:00:03]} 80. Ke4 {[%clk 0:00:06]}  Bc1 {[%clk 0:00:03]} 81. f5 {[%clk 0:00:06]}  Bb2 {[%clk 0:00:03]} 82. e6 {[%clk 0:00:06]}  fxe6 {[%clk 0:00:02]} 83. fxe6 {[%clk 0:00:06]}  Ba3 {[%clk 0:00:03]} 84. Kd5 {[%clk 0:00:06]}  Be7 {[%clk 0:00:03]} 85. Kc6 {[%clk 0:00:05]}  Bg5 {[%clk 0:00:03]} 86. Kd7 {[%clk 0:00:06]}  Kf8 {[%clk 0:00:03]} 87. Bg6 {[%clk 0:00:05]}  Kg7 {[%clk 0:00:03]} 88. Bh5 {[%clk 0:00:05]}  Kf8 {[%clk 0:00:03]} 89. Kd6 {[%clk 0:00:05]}  Kg7 {[%clk 0:00:02]} 90. Ke5 {[%clk 0:00:06]}  Kf8 {[%clk 0:00:02]} 91. Kf5 {[%clk 0:00:06]}  Ke7 {[%clk 0:00:00]} 92. Bf7 {[%clk 0:00:06]} 1-0